bitfinex/quotes_SOLUSD_20260226
["timestamp","ask_amount","ask_price","bid_price","bid_amount"]
[1772109287825,2.021844,87.609,87.58,3.60851657]
[1772109290344,11.41448269,87.608,87.58,3.60851657]
[1772109290520,2.021844,87.607,87.58,3.60851657]
[1772109292342,11.41474328,87.606,87.58,3.60851657]
[1772109292536,11.41474328,87.606,87.573,11.41901891]
[1772109292537,2.021844,87.605,87.573,11.41901891]
[1772109292846,2.021844,87.599,87.552,11.42165576]
[1772109293018,2.021844,87.599,87.57,3.60851657]
[1772109294441,97.02531789,87.606,87.57,3.60851657]
[1772109294442,2.021844,87.597,87.57,3.60851657]
[1772109294650,0.1,87.61,87.59,3.60851657]
[1772109296940,0.1,87.61,87.6,3.60851657]
[1772109298239,0.1,87.61,87.58,3.60851657]
[1772109298240,2.021844,87.609,87.58,3.60851657]
[1772109299120,2.021844,87.607,87.58,3.60851657]
[1772109301029,2.021844,87.605,87.58,3.60851657]
[1772109301437,0.1,87.61,87.59,3.60851657]
[1772109301737,2.021844,87.609,87.59,3.60851657]
[1772109302138,2.021844,87.608,87.58,3.60851657]
[1772109302643,2.021844,87.608,87.57,3.60851657]
[1772109303942,2.021844,87.606,87.57,3.60851657]
[1772109305138,2.021844,87.604,87.58,3.60851657]
[1772109306340,39.95205753,87.605,87.56,3.60851657]
[1772109306341,2.021844,87.599,87.56,3.60851657]
[1772109306541,2.021844,87.599,87.57,3.60851657]
[1772109307124,2.021844,87.597,87.57,3.60851657]
[1772109307444,2.021844,87.597,87.58,3.60851657]
[1772109308137,2.021844,87.597,87.57,3.60851657]
[1772109308338,2.021844,87.597,87.532,0.6]
[1772109308526,2.021844,87.589,87.56,3.60851657]
[1772109308859,2.021844,87.589,87.57,3.60851657]
[1772109309026,2.021844,87.589,87.56,3.60851657]
[1772109309740,2.021844,87.587,87.544,11.42282737]
[1772109309933,2.021844,87.587,87.56,3.60851657]
[1772109312831,2.021844,87.585,87.56,3.60851657]
[1772109313856,13.43945452,87.584,87.56,3.60851657]
[1772109315636,13.43945452,87.584,87.57,3.60851657]
[1772109315953,11.41761052,87.584,87.57,3.60851657]
[1772109317053,2.021844,87.586,87.57,3.60851657]
[1772109319673,13.43932416,87.585,87.57,3.60851657]
[1772109320343,2.021844,87.584,87.57,3.60851657]
[1772109321162,2.021844,87.584,87.56,3.60851657]
[1772109321852,11.41774088,87.583,87.56,3.60851657]
[1772109322044,2.021844,87.582,87.56,3.60851657]
[1772109324380,2.021844,87.58,87.56,3.60851657]
[1772109324541,2.021844,87.598,87.57,3.60851657]
[1772109328459,39.95570624,87.597,87.57,3.60851657]
[1772109328658,2.021844,87.596,87.57,3.60851657]
[1772109329471,2.021844,87.594,87.57,3.60851657]
[1772109331368,2.021844,87.592,87.57,3.60851657]
[1772109332863,2.021844,87.592,87.56,3.60851657]
[1772109333063,2.021844,87.588,87.56,3.60851657]
[1772109334769,2.021844,87.584,87.525,11.42530705]
[1772109334977,2.021844,87.578,87.54,3.60851657]
[1772109336075,39.96026807,87.587,87.56,3.60851657]
[1772109336076,2.021844,87.586,87.56,3.60851657]
[1772109338173,2.021844,87.584,87.56,3.60851657]
[1772109339551,2.021844,87.578,87.54,3.60851657]
[1772109339758,2.021844,87.568,87.54,3.60851657]
[1772109340486,2.021844,87.566,87.54,3.60851657]
[1772109341355,2.021844,87.566,87.54,3.61146624]
[1772109343188,2.021844,87.564,87.54,3.61146624]
[1772109345688,2.021844,87.562,87.54,3.61146624]
[1772109348972,2.021844,87.56,87.54,3.61146624]
[1772109350662,2.021844,87.56,87.53,3.61146624]
[1772109351064,2.021844,87.558,87.53,3.61146624]
[1772109351285,2.021844,87.558,87.54,3.61146624]
[1772109352691,2.021844,87.558,87.53,3.61146624]
[1772109353395,2.021844,87.556,87.53,3.61146624]
[1772109354571,2.021844,87.556,87.517,11.42632955]
[1772109354572,2.021844,87.548,87.51,3.61146624]
[1772109355388,2.021844,87.546,87.52,3.61146624]
[1772109357478,2.021844,87.544,87.52,3.61146624]
[1772109359893,2.021844,87.542,87.52,3.61146624]
[1772109360274,11.42008793,87.565,87.53,3.61146624]
[1772109360472,2.021844,87.572,87.55,3.61146624]
[1772109361375,2.021844,87.579,87.55,3.61146624]
[1772109362397,2.021844,87.568,87.53,3.61146624]
[1772109365172,2.021844,87.566,87.53,3.61146624]
[1772109367501,2.021844,87.564,87.53,3.61146624]
[1772109372280,39.97122071,87.563,87.53,3.61146624]
[1772109372481,2.021844,87.562,87.53,3.61146624]
[1772109373687,2.021844,87.558,87.52,3.61146624]
[1772109374881,2.021844,87.556,87.52,3.61146624]
[1772109375500,2.021844,87.548,87.51,3.61146624]
[1772109375999,2.021844,87.548,87.53,3.61146624]
[1772109376197,2.021844,87.556,87.53,3.61146624]
[1772109376379,39.97395981,87.557,87.53,3.61146624]
[1772109376380,11.42113137,87.557,87.53,3.61146624]
[1772109376584,2.021844,87.57,87.55,3.61146624]
[1772109376805,2.021844,87.578,87.55,3.61146624]
[1772109378107,2.021844,87.576,87.54,3.61146624]
[1772109379304,2.021844,87.574,87.55,3.61146624]
[1772109379607,2.021844,87.574,87.54,3.61146624]
[1772109380121,2.021844,87.574,87.55,3.61146624]
[1772109380311,2.021844,87.574,87.54,3.61146624]
[1772109382912,2.021844,87.572,87.54,15.03472337]
[1772109383702,2.021844,87.57,87.54,15.03472337]
[1772109384817,2.021844,87.57,87.54,3.61146624]
[1772109386410,2.021844,87.568,87.54,15.03480311]
[1772109386614,2.021844,87.568,87.54,3.61146624]
[1772109387198,2.021844,87.568,87.541,11.42321883]
[1772109390008,2.021844,87.566,87.541,11.42321883]
[1772109390408,2.021844,87.566,87.54,3.61146624]
[1772109394927,11.42008793,87.565,87.54,15.03475494]
[1772109396323,2.021844,87.579,87.55,3.61146624]
[1772109396531,13.44010636,87.579,87.56,3.61146624]
[1772109396829,13.44010636,87.579,87.54,11.4232887]
[1772109396830,2.021844,87.578,87.54,39.98166201]
[1772109397028,2.021844,87.576,87.56,3.61146624]
[1772109397327,2.021844,87.576,87.547,11.42232818]
[1772109397506,2.021844,87.576,87.55,3.61146624]
[1772109398627,2.021844,87.576,87.522,29.16422687]
[1772109398932,2.021844,87.539,87.51,3.61146624]
[1772109399129,11.42361031,87.538,87.51,3.61146624]
[1772109399330,11.42361031,87.538,87.511,11.42713487]
[1772109399919,11.42361031,87.538,87.52,3.61146624]
[1772109401940,11.42361031,87.538,87.507,11.42762601]
[1772109401941,2.021844,87.537,87.51,3.61146624]
[1772109402727,11.42387132,87.536,87.51,3.61146624]
[1772109403233,11.42387132,87.536,87.51,3.61342239]
[1772109403436,2.021844,87.535,87.51,3.61342239]
[1772109404540,11.42413233,87.534,87.51,3.61342239]
[1772109404742,2.021844,87.533,87.51,3.61342239]
[1772109406746,2.021844,87.529,87.481,40.00849995]
[1772109406930,2.021844,87.529,87.49,3.61342239]
[1772109408847,3.61342239,87.53,87.481,40.00849995]
[1772109408848,2.021844,87.527,87.5,3.61342239]
[1772109411154,2.021844,87.525,87.5,3.61342239]
[1772109413347,2.021844,87.523,87.5,3.61342239]
[1772109415231,2.021844,87.521,87.5,3.61342239]
[1772109415542,57.11371901,87.545,87.48,3.81342239]
[1772109415543,2.021844,87.557,87.511,0.02010076]
[1772109415732,2.021844,87.547,87.52,3.61342239]
[1772109417038,2.021844,87.545,87.52,3.61342239]
[1772109418853,2.021844,87.543,87.52,3.61342239]
[1772109419149,2.021844,87.543,87.518,0.02010076]
[1772109421149,11.42308834,87.542,87.518,0.02010076]
[1772109421354,2.021844,87.541,87.518,0.02010076]
[1772109422054,2.021844,87.539,87.505,0.02041066]
[1772109422355,39.9808092,87.542,87.491,0.02045293]
[1772109422356,2.021844,87.529,87.491,0.02045293]
[1772109423062,2.021844,87.529,87.492,0.02045293]
[1772109424360,2.021844,87.527,87.492,0.02045293]
[1772109424559,2.021844,87.527,87.5,3.61342239]
[1772109424856,2.021844,87.527,87.501,0.020536]
[1772109425167,11.42491545,87.528,87.501,0.020536]
[1772109425357,2.021844,87.527,87.501,0.020536]
[1772109425752,2.021844,87.519,87.48,3.81342239]
[1772109425960,2.021844,87.509,87.48,0.2]
[1772109426854,2.021844,87.489,87.46,0.2]
[1772109427058,2.021844,87.489,87.46,3.81342239]
[1772109428354,2.021844,87.489,87.461,0.0206965]
[1772109428763,3.61342239,87.5,87.461,0.0206965]
[1772109428764,2.021844,87.487,87.461,0.0206965]
[1772109428942,2.021844,87.487,87.47,3.61342239]
[1772109429266,11.43013899,87.488,87.471,0.02073548]
[1772109429764,2.021844,87.499,87.471,0.02073548]
[1772109430338,2.021844,87.499,87.47,3.61342239]
[1772109431063,2.021844,87.498,87.47,3.61342239]
[1772109432859,3.61342239,87.56,87.46,0.2]
[1772109432860,2.021844,87.496,87.46,3.81342239]
[1772109434147,2.021844,87.487,87.46,0.2]
[1772109435462,5.36086188,87.488,87.46,0.2]
[1772109435463,2.021844,87.485,87.46,0.2]
[1772109435657,2.021844,87.485,87.46,3.81342239]
[1772109436963,40.00640102,87.486,87.45,1e-08]
[1772109436964,2.021844,87.469,87.45,1e-08]
[1772109437152,2.021844,87.459,87.43,3.61342239]
[1772109437456,2.021844,87.457,87.43,3.61342239]
[1772109438068,2.021844,87.457,87.42,3.81342239]
[1772109438246,40.01920921,87.458,87.42,3.81342239]
[1772109438247,2.021844,87.447,87.42,0.2]
[1772109438658,2.021844,87.447,87.43,3.61342239]
[1772109438857,2.021844,87.461,87.44,3.61342239]
[1772109439248,3.61342239,87.48,87.44,3.61342239]
[1772109439249,2.021844,87.485,87.451,0.02110147]
[1772109439448,2.021844,87.485,87.44,3.61342239]
[1772109439449,11.4306616,87.484,87.47,3.61342239]
[1772109439757,13.4525056,87.484,87.47,3.61342239]
[1772109439964,2.021844,87.483,87.46,3.61342239]
[1772109440173,2.021844,87.477,87.45,3.61342239]
[1772109440461,2.021844,87.477,87.46,3.61342239]
[1772109441469,13.45353463,87.477,87.46,3.61342239]
[1772109443668,2.021844,87.494,87.46,3.61342239]
[1772109443869,13.45119915,87.494,87.471,0.02123643]
[1772109444176,2.021844,87.493,87.471,0.02123643]
[1772109444753,2.021844,87.493,87.47,3.61342239]
[1772109445278,11.42961642,87.492,87.471,0.02130161]
[1772109445575,11.42961642,87.492,87.48,3.61342239]
[1772109446880,11.42961642,87.492,87.471,0.02130161]
[1772109447382,2.021844,87.491,87.47,3.61342239]
[1772109447580,2.021844,87.491,87.46,3.61342239]
[1772109448777,2.021844,87.491,87.47,3.61342239]
[1772109451779,2.021844,87.489,87.47,3.61342239]
[1772109451990,2.021844,87.489,87.46,3.61342239]
[1772109453385,2.021844,87.489,87.46,3.63499936]
[1772109453558,3.61342239,87.5,87.46,3.61342239]
[1772109453559,2.021844,87.487,87.46,3.61342239]
[1772109456355,2.021844,87.485,87.45,0.02169046]
[1772109456664,2.021844,87.485,87.46,3.61342239]
[1772109460285,2.021844,87.483,87.46,3.61342239]
[1772109460668,2.021844,87.483,87.461,11.43366757]
[1772109460967,2.021844,87.483,87.462,0.02179883]
[1772109462286,11.43092293,87.482,87.462,0.02179883]
[1772109462490,2.021844,87.481,87.462,0.02179883]
[1772109462792,11.43050909,87.486,87.462,0.02179883]
[1772109463887,2.021844,87.486,87.462,0.02179883]
[1772109465290,13.45230271,87.486,87.462,0.02179883]
[1772109465787,2.021844,87.485,87.462,0.02179883]
[1772109466276,2.021844,87.477,87.43,3.61755719]
[1772109466468,2.021844,87.477,87.431,0.02195227]
[1772109467790,40.01097443,87.476,87.44,3.61755719]
[1772109468089,3.61755719,87.47,87.436,0.02197682]
[1772109468397,2.021844,87.469,87.436,0.02197682]
[1772109468991,2.021844,87.469,87.44,3.61755719]
[1772109471986,2.021844,87.467,87.44,3.61755719]
[1772109476203,2.021844,87.465,87.44,3.63976458]
[1772109477798,2.021844,87.465,87.44,3.61755719]
[1772109478309,2.021844,87.463,87.44,3.61755719]
[1772109479505,2.021844,87.463,87.441,0.02227152]
[1772109479712,2.021844,87.471,87.451,0.02227152]
[1772109479889,2.021844,87.471,87.46,3.61755719]
[1772109480090,11.43214592,87.473,87.46,3.61755719]
[1772109480691,13.45353501,87.477,87.46,3.61755719]
[1772109482118,11.43112929,87.481,87.47,3.61755719]
[1772109482292,2.021844,87.488,87.47,3.61755719]
[1772109484819,2.021844,87.486,87.47,3.61755719]
[1772109485011,2.021844,87.486,87.465,0.02233347]
[1772109486204,2.021844,87.484,87.46,3.61755719]
[1772109486804,2.021844,87.484,87.46,3.63996998]
[1772109487335,2.021844,87.497,87.47,3.61755719]
[1772109487496,2.021844,87.511,87.481,0.02243206]
[1772109487695,2.021844,87.51,87.49,3.61755719]
[1772109487907,11.42664711,87.515,87.491,0.02243206]
[1772109488113,2.021844,87.516,87.5,3.61755719]
[1772109488300,13.44837863,87.516,87.5,3.61755719]
[1772109488616,2.021844,87.522,87.501,0.0224511]
[1772109488832,5.9419267,87.512,87.501,11.42844081]
[1772109489009,2.03306528,87.53,87.501,11.42844081]
[1772109489214,11.42391848,87.536,87.52,3.61755719]
[1772109489715,2.03306528,87.544,87.53,3.61755719]
[1772109489914,3.71755719,87.57,87.53,3.61755719]
[1772109489915,2.03306528,87.563,87.53,3.61755719]
[1772109490524,2.03306528,87.561,87.54,3.61755719]
[1772109491022,2.03306528,87.561,87.53,3.61755719]
[1772109492104,2.03306528,87.561,87.54,3.61755719]
[1772109494228,2.03306528,87.559,87.54,3.61755719]
[1772109495424,13.45406621,87.558,87.54,3.61755719]
[1772109497226,2.03306528,87.557,87.54,3.61755719]
[1772109497420,11.42126182,87.556,87.54,3.61755719]
[1772109497624,2.03306528,87.555,87.53,3.61755719]
[1772109499330,11.42152271,87.554,87.54,3.61755719]
[1772109499728,0.1,87.57,87.54,3.61755719]
[1772109499729,2.03306528,87.561,87.54,3.61755719]
[1772109501726,0.1,87.57,87.55,3.61755719]
[1772109501930,45.64376019,87.636,87.56,3.61755719]
[1772109501931,11.41819191,87.58,87.56,3.61755719]
[1772109502317,13.45125719,87.58,87.56,3.61755719]
[1772109502617,2.03306528,87.599,87.57,3.61755719]
[1772109503826,2.03306528,87.597,87.57,3.61755719]
[1772109506346,11.41604639,87.596,87.56,3.61755719]
[1772109506535,2.03306528,87.595,87.56,3.61755719]
[1772109506736,2.03306528,87.595,87.57,3.61755719]
[1772109509435,2.03306528,87.593,87.57,3.61755719]
[1772109510543,2.03306528,87.591,87.57,3.61755719]
[1772109510931,2.03306528,87.591,87.539,3.69383402]
[1772109511137,2.03306528,87.591,87.56,3.61755719]
[1772109511564,2.03306528,87.591,87.57,3.61755719]
[1772109512142,2.03306528,87.591,87.539,3.69383402]
[1772109512344,2.03306528,87.591,87.57,3.61755719]
[1772109512847,2.03306528,87.594,87.58,3.61755719]
[1772109513062,0.1,87.61,87.58,3.61755719]
[1772109513354,2.13306528,87.61,87.59,3.61755719]
[1772109514149,11.4143524,87.609,87.59,3.61755719]
[1772109514458,2.03306528,87.608,87.59,3.61755719]
[1772109516561,2.03306528,87.606,87.58,3.61755719]
[1772109518756,11.41487358,87.605,87.58,3.61755719]
[1772109518949,2.03306528,87.604,87.58,3.61755719]
[1772109522045,2.03306528,87.602,87.581,11.41800162]
[1772109522248,0.1,87.61,87.59,3.61755719]
[1772109522449,2.03306528,87.609,87.59,3.61755719]
[1772109525257,2.03306528,87.608,87.59,3.61755719]
[1772109527266,2.03306528,87.608,87.59,3.60712063]
[1772109530046,2.03306528,87.633,87.6,3.60712063]
[1772109530255,2.03306528,87.633,87.61,3.60712063]
[1772109530761,2.03306528,87.633,87.6,3.60712063]
[1772109531065,2.03306528,87.633,87.61,3.60712063]
[1772109531764,11.41135658,87.632,87.61,3.60712063]
[1772109531956,2.03306528,87.631,87.61,3.60712063]
[1772109533550,2.03306528,87.631,87.603,11.41507576]
[1772109534170,2.03306528,87.629,87.603,11.41507576]
[1772109534772,2.03306528,87.629,87.61,3.60712063]
[1772109535157,2.03306528,87.639,87.61,3.60712063]
[1772109535351,0.1,87.65,87.63,3.60712063]
[1772109535555,0.1,87.65,87.64,3.60712063]
[1772109535865,0.1,87.65,87.63,3.60712063]
[1772109536254,0.1,87.65,87.631,11.4114868]
[1772109536771,0.1,87.65,87.61,3.60712063]
[1772109536772,2.03306528,87.649,87.61,3.60712063]
[1772109537967,2.03306528,87.647,87.62,3.60712063]
[1772109538371,0.1,87.65,87.62,3.60712063]
[1772109538576,11.40536964,87.678,87.615,2.00990233]
[1772109538752,3.60712063,87.67,87.64,3.60712063]
[1772109539066,3.60712063,87.67,87.631,2.00990233]
[1772109539370,39.91879376,87.678,87.64,3.60712063]
[1772109540072,3.60712063,87.67,87.63,3.60712063]
[1772109540273,3.60712063,87.67,87.631,2.00990233]
[1772109540570,3.60712063,87.67,87.63,3.60712063]
[1772109540571,1.9844977,87.659,87.625,2.00990233]
[1772109541067,1.9844977,87.649,87.611,2.00990233]
[1772109541875,1.9844977,87.647,87.612,2.00990233]
[1772109542478,1.9844977,87.639,87.6,3.60712063]
[1772109542766,1.9844977,87.639,87.61,3.60712063]
[1772109543473,1.9844977,87.639,87.61,5.61702296]
[1772109544356,1.9844977,87.637,87.61,17.03121656]
[1772109545783,1.9844977,87.637,87.611,2.00990233]
[1772109546079,13.39444771,87.643,87.621,2.00990233]
[1772109546384,11.40784175,87.659,87.631,2.00990233]
[1772109546677,13.39233945,87.659,87.64,3.60712063]
[1772109547458,1.9844977,87.658,87.64,3.60712063]
[1772109547663,1.9844977,87.658,87.622,11.41265892]
[1772109547959,1.9844977,87.658,87.623,2.00990233]
[1772109548160,1.9844977,87.658,87.63,3.60712063]
[1772109548580,1.9844977,87.656,87.63,3.60712063]
[1772109549482,11.40810203,87.657,87.64,3.60712063]
[1772109549983,11.40810203,87.657,87.64,5.61702296]
[1772109551070,1.9844977,87.662,87.64,2.00990233]
[1772109552479,1.9844977,87.662,87.631,2.00990233]
[1772109553580,1.9844977,87.66,87.631,2.00990233]
[1772109555075,1.9844977,87.66,87.632,2.00990233]
[1772109555471,1.9844977,87.658,87.621,2.00990233]
[1772109556686,1.9844977,87.658,87.63,3.60712063]
[1772109557785,1.9844977,87.656,87.631,2.00990233]
[1772109557989,13.39201093,87.662,87.641,2.00990233]
[1772109559069,11.4070052,87.666,87.641,2.00990233]
[1772109559469,11.40650803,87.67,87.65,5.61702296]
[1772109559683,28.51347125,87.678,87.65,5.61702296]
[1772109559684,1.9844977,87.673,87.65,5.61702296]
[1772109559986,1.9844977,87.673,87.652,2.00990233]
[1772109560687,0.1,87.68,87.661,2.00990233]
[1772109560887,0.1,87.68,87.67,3.60712063]
[1772109561090,12.09414935,87.681,87.671,2.00990233]
[1772109561390,10.05539757,87.681,87.671,2.00990233]
[1772109562874,10.05539757,87.681,87.67,3.60712063]
[1772109563475,10.05539757,87.681,87.671,11.40628029]
[1772109563676,1e-08,87.681,87.671,11.40628029]
[1772109563886,0.1,87.69,87.671,11.40628029]
[1772109564096,0.1,87.69,87.68,3.60712063]
[1772109564678,0.1,87.69,87.64,3.60712063]
[1772109564679,0.1,87.7,87.652,3.69383402]
[1772109564883,2.03590853,87.748,87.69,3.60712063]
[1772109565082,2.03590853,87.748,87.74,3.60712063]
[1772109565479,0.1,87.75,87.74,3.60712063]
[1772109565676,2.03590853,87.765,87.74,3.60712063]
[1772109565880,2.03590853,87.774,87.76,3.60712063]
[1772109566393,2.03590853,87.774,87.75,3.60712063]
[1772109566575,2.03590853,87.772,87.74,3.60712063]
[1772109567404,11.39302518,87.773,87.73,3.60712063]
[1772109567405,3.60712063,87.77,87.73,3.60712063]
[1772109567581,2.03590853,87.769,87.75,3.60712063]
[1772109567903,2.03590853,87.769,87.724,39.89786147]
[1772109568198,2.03590853,87.769,87.74,3.60712063]
[1772109568705,2.03590853,87.767,87.74,3.60712063]
[1772109568915,2.03590853,87.767,87.72,3.60712063]
[1772109569603,2.03590853,87.767,87.73,3.60712063]
[1772109569977,2.03590853,87.767,87.74,3.60712063]
[1772109570304,2.03590853,87.767,87.73,3.62743793]
[1772109570803,2.03590853,87.765,87.731,11.39847944]
[1772109571182,2.03590853,87.765,87.74,3.60712063]
[1772109572899,2.03590853,87.765,87.74,15.00436279]
[1772109573101,28.47719053,87.79,87.74,15.00436279]
[1772109573102,2.03590853,87.773,87.75,3.60712063]
[1772109573305,2.03590853,87.773,87.76,3.60712063]
[1772109573602,2.03590853,87.783,87.76,3.60712063]
[1772109573810,2.03590853,87.783,87.76,3.63532183]
[1772109574204,2.03590853,87.784,87.754,0.03009814]
[1772109574514,2.03590853,87.784,87.76,3.60712063]
[1772109574802,2.03590853,87.782,87.734,0.03009814]
[1772109575004,2.03590853,87.782,87.75,3.60712063]
[1772109575187,2.03590853,87.782,87.733,3.69383402]
[1772109575188,2.03590853,87.782,87.76,3.60712063]
[1772109575711,2.03590853,87.793,87.76,3.60712063]
[1772109575911,11.39033207,87.794,87.76,3.60712063]
[1772109575912,2.03590853,87.789,87.76,3.60712063]
[1772109577307,2.03590853,87.787,87.77,3.60712063]
[1772109577508,11.3910785,87.788,87.77,3.60712063]
[1772109578009,13.42698703,87.788,87.77,3.60712063]
[1772109578305,2.03590853,87.787,87.77,3.60712063]
[1772109578706,2.03590853,87.787,87.76,3.60712063]
[1772109579514,2.03590853,87.787,87.755,11.39533357]
[1772109579515,2.03590853,87.785,87.77,3.60712063]
[1772109579711,2.03590853,87.785,87.761,0.04106642]
[1772109580013,2.03590853,87.785,87.77,3.60712063]
[1772109580600,2.03590853,87.785,87.761,0.04106642]
[1772109580601,2.03590853,87.785,87.76,3.60712063]
[1772109581413,2.03590853,87.785,87.745,0.04282958]
[1772109581414,2.03590853,87.785,87.75,3.60712063]
[1772109581618,2.03590853,87.783,87.75,3.60712063]
[1772109581799,2.03590853,87.779,87.74,3.60712063]
[1772109582706,2.03590853,87.779,87.75,3.60712063]
[1772109583005,2.03590853,87.779,87.74,3.60712063]
[1772109583898,2.03590853,87.777,87.74,3.60712063]
[1772109587397,2.03590853,87.775,87.74,3.59442639]
[1772109588923,2.03590853,87.775,87.75,3.59442639]
[1772109589107,2.03590853,87.775,87.74,3.59442639]
[1772109589618,2.03590853,87.773,87.74,3.59442639]
[1772109590725,2.03590853,87.773,87.741,0.05934441]
[1772109591022,2.03590853,87.773,87.74,3.59442639]
[1772109591629,3.59442639,87.78,87.74,3.59442639]
[1772109591630,2.03590853,87.771,87.74,3.59442639]
[1772109592120,2.03590853,87.771,87.741,0.06089555]
[1772109592304,2.03590853,87.771,87.74,3.59442639]
[1772109593304,2.03590853,87.769,87.73,3.59442639]
[1772109593804,1.86452048,87.749,87.695,1.92793786]
[1772109594122,1.86452048,87.749,87.711,1.92793786]
[1772109595531,1.86452048,87.747,87.711,1.92793786]
[1772109596429,1.86452048,87.747,87.71,3.59442639]
[1772109596728,39.88694899,87.748,87.683,1.9972432]
[1772109596729,1.89096793,87.719,87.683,1.9972432]
[1772109596913,1.89096793,87.709,87.672,1.9972432]
[1772109597328,11.4014685,87.708,87.681,1.9972432]
[1772109598033,13.29243643,87.708,87.681,1.9972432]
[1772109598210,11.4014685,87.708,87.681,1.9972432]
[1772109599219,1.89096793,87.707,87.681,1.9972432]
[1772109599428,1.89096793,87.705,87.665,1.9972432]
[1772109599625,1.89096793,87.699,87.654,11.40846624]
[1772109599810,1.89096793,87.699,87.655,1.9972432]
[1772109600015,1.89096793,87.699,87.661,1.9972432]
[1772109600629,1.89096793,87.699,87.67,3.59442639]
[1772109600821,1.89096793,87.699,87.671,1.9972432]
[1772109601220,1.89096793,87.699,87.661,1.9972432]
[1772109601419,1.89096793,87.689,87.65,3.79442639]
[1772109601630,1.89096793,87.689,87.65,0.2]
[1772109601837,1.89096793,87.679,87.65,0.2]
[1772109602251,1.89096793,87.679,87.651,1.9972432]
[1772109602619,1.89096793,87.679,87.652,1.9972432]
[1772109602833,1.89096793,87.679,87.65,0.2]
[1772109603239,1.89096793,87.669,87.65,0.2]
[1772109603446,1.89096793,87.667,87.65,0.2]
[1772109603646,3.59442639,87.69,87.651,1.9972432]
[1772109603822,1.89096793,87.689,87.652,1.9972432]
[1772109605642,11.40419902,87.687,87.653,11.40862263]
[1772109605945,1.89096793,87.686,87.653,13.40586583]
[1772109606145,1.89096793,87.686,87.654,1.9972432]
[1772109606341,1.89096793,87.686,87.661,1.9972432]
[1772109606546,11.40419902,87.687,87.661,1.9972432]
[1772109607841,11.40419902,87.687,87.663,1.9972432]
[1772109608147,13.29516695,87.687,87.663,1.9972432]
[1772109608944,11.40366573,87.692,87.663,1.9972432]
[1772109609245,13.29463366,87.692,87.67,3.59442639]
[1772109609646,13.29463366,87.692,87.67,5.59166959]
[1772109609840,13.29463366,87.692,87.671,1.9972432]
[1772109610022,1.89096793,87.711,87.681,1.9972432]
[1772109610223,1.89096793,87.71,87.681,1.9972432]
[1772109611142,1.89096793,87.708,87.664,1.9972432]
[1772109611538,11.40133851,87.709,87.66,3.59442639]
[1772109611539,1.89096793,87.699,87.66,3.59442639]
[1772109612041,1.89096793,87.697,87.663,1.9972432]
[1772109612228,11.40211851,87.703,87.671,1.9972432]
[1772109612430,1.89096793,87.702,87.671,1.9972432]
[1772109612926,1.89096793,87.699,87.663,1.9972432]
[1772109613122,1.89096793,87.699,87.671,1.9972432]
[1772109613327,1.89096793,87.713,87.681,1.9972432]
[1772109614533,1.89096793,87.711,87.681,1.9972432]
[1772109615141,1.89096793,87.711,87.683,1.9972432]
[1772109615532,1.89096793,87.729,87.7,3.59442639]
[1772109615849,11.39808968,87.734,87.701,1.9972432]
[1772109616053,1.89096793,87.733,87.701,1.9972432]
[1772109616728,1.89096793,87.731,87.701,1.9972432]
[1772109617462,1.89096793,87.729,87.692,1.9972432]
[1772109620841,1.89096793,87.719,87.681,1.9972432]
[1772109622057,1.89096793,87.719,87.675,1.9972432]
[1772109622241,1.89096793,87.709,87.675,1.9972432]
[1772109622833,1.89096793,87.707,87.675,1.9972432]
[1772109623036,1.89096793,87.707,87.68,3.59442639]
[1772109624458,1.89096793,87.705,87.68,3.59442639]
[1772109624659,1.89096793,87.705,87.681,1.9972432]
[1772109624958,11.40016872,87.718,87.691,1.9972432]
[1772109625141,11.39963534,87.723,87.701,1.9972432]
[1772109625533,11.39834951,87.732,87.701,1.9972432]
[1772109625735,11.39834951,87.732,87.71,3.59442639]
[1772109625945,11.39790562,87.736,87.711,1.9972432]
[1772109628866,1.85516372,87.741,87.711,1.9972432]
[1772109629049,1.85516372,87.741,87.712,1.99183772]
[1772109631161,11.39731023,87.74,87.712,1.99183772]
[1772109631360,13.25247395,87.74,87.712,1.99183772]
[1772109633063,13.25247395,87.74,87.713,1.99183772]
[1772109634250,1.85516372,87.739,87.71,3.59442639]
[1772109635163,1.85516372,87.739,87.711,1.99183772]
[1772109638166,104.1,87.767,87.72,1.9594881]
[1772109638167,1.99475536,87.745,87.72,1.9594881]
[1772109638347,1.99475536,87.745,87.721,1.9594881]
[1772109638943,1.99475536,87.745,87.72,3.59442639]
[1772109639559,1.99475536,87.745,87.721,1.9594881]
[1772109639758,11.39614126,87.749,87.73,3.59442639]
[1772109639954,11.39406369,87.765,87.741,1.9594881]
[1772109640174,1.99475536,87.764,87.741,1.9594881]
[1772109640552,11.39406369,87.765,87.741,1.9594881]
[1772109642676,11.3934146,87.77,87.751,1.9594881]